Cogmind - Beta 13 @@@ ROGUE MODE // 2024.07.14 @ 16:59:46 Player: weedlord420 Result: Destroyed by G-34 Mercenary with Small Laser Performance ------------- Evolutions (1) 500 Regions Visited (5) 1000 Robots Destroyed (93) 465 Value Destroyed (2088) 2088 Prototype IDs (8) 160 Alien Tech Used (0) 0 Bonus (325) 325 TOTAL SCORE: 4538 Bonus ------- Follower Combat Kills 25 Aligned with FarCom 300 Cogmind --------- Core Integrity 0/400 Matter 256/300 Energy 100/100 System Corruption 6% Temperature Warm (123) Movement Core (50) Location -9/Exiles Parts ------- > --- POWER (1) -------- (None) > --- PROPULSION (2) --- (None) > --- UTILITY (4) ------ (None) > --- WEAPON (2) ------- (None) > --- INVENTORY (5) ---- Firepult AWS/Autocannon Peak State ------------ > --- POWER ------------ Heavy Ion Engine > --- PROPULSION ------- Light Treads Light Treads > --- UTILITY ---------- Medium Storage Unit Advanced Targeting Computer Improved Light Armor Plating Improved Light Armor Plating > --- WEAPON ----------- Firepult > --- INVENTORY -------- Improved Flight Unit Advanced Targeting Computer Improved Propulsion Shielding Improved Light Armor Plating AWS/Autocannon Datajack [Rating: 39] Favorites ----------- Power Ion Engine Engine Ion Engine Propulsion Light Treads Treads Light Treads Hover Unit Gravmag System Flight Unit Improved Flight Unit Utility Improved Light Armor Plating Device Heat Sink Storage Medium Storage Unit Processor Advanced Targeting Computer Protection Improved Light Armor Plating Weapon Heavy Assault Rifle Energy Gun Improved EM Shotgun Energy Cannon Advanced Beam Cannon Ballistic Gun Heavy Assault Rifle Launcher Rocket Launcher Special Melee Weapon Datajack Build | -11 -10 -10 -9 -9 -9 ------- Run | Yrd Mat Min Mat Min Exi Slots Evolved 2 | . . . 2 . . Power . | . . . . . . Propulsion . | . . . . . . Utility 2 | . . . 2 . . Weapon . | . . . . . . Parts Attached 72 | 6 14 9 33 . 10 Power 9 | 1 3 1 4 . . Engine 9 | 1 3 1 4 . . Core . | . . . . . . Reactor . | . . . . . . Propulsion 13 | 2 2 3 3 . 3 Treads 11 | 2 2 3 3 . 1 Leg . | . . . . . . Wheel . | . . . . . . Hover 1 | . . . . . 1 Flight 1 | . . . . . 1 Utility 15 | 1 3 1 7 . 3 Device 4 | . 1 . 2 . 1 Storage 3 | 1 1 . 1 . . Processor 2 | . . 1 1 . . Hackware . | . . . . . . Protection 6 | . 1 . 3 . 2 Artifact . | . . . . . . Weapon 35 | 2 6 4 19 . 4 Energy Gun 17 | 2 4 3 8 . . Energy Cannon 3 | . . . 1 . 2 Ballistic Gun 9 | . 1 1 5 . 2 Ballistic Cannon . | . . . . . . Launcher 3 | . 1 . 2 . . Special Weapon . | . . . . . . Impact Weapon . | . . . . . . Slashing Weapon . | . . . . . . Piercing Weapon . | . . . . . . Special Melee Weapon 3 | . . . 3 . . Unidentified Prototypes 6 | . . . 4 . 2 Corrupted Parts 3 | . . 3 . . . System Corruption 13 | . . 13 . . . Parts Lost 15 | . 3 2 4 . 6 Power 2 | . 1 . 1 . . Propulsion 5 | . 1 . 1 . 3 Utility 4 | . 1 . . . 3 Weapon 4 | . . 2 2 . . Highest Loss Streak 6 | . 3 2 3 . 6 To Critical Strikes . | . . . . . . Average Slot Usage (%) 98 | . 93 99 99 100 97 Engine 11 | . 13 14 11 11 11 Treads 23 | . 25 28 21 22 21 Device 3 | . 5 13 1 . . Storage 12 | . 14 14 11 11 11 Processor 7 | . . . 11 11 11 Protection 15 | . 5 . 20 22 21 Energy Gun 12 | . 27 17 12 . . Ballistic Gun 9 | . . 10 7 22 19 Naked Turns 2 | . . . . . 2 Heaviest Build 46 | 13 22 22 30 30 46 Greatest Support 40 | 40 40 40 40 40 40 Greatest Overweight (x) 1 | . . . 1 . 1 Average Overweight (x) . | . . . . . . Largest Inventory Capacity 10 | 8 10 10 10 10 10 Average Capacity 9 | 5 8 10 10 10 9 Most Carried 10 | 5 8 10 10 10 10 Average Carried 8 | 3 5 8 9 10 9 Final Capacity 10 | 8 10 10 10 10 5 Final Carried 10 | . 8 10 10 10 5 Class Distribution -------------------- 99% | Mutant Dominant Class ---------------- Mutant | -10/Materials Mutant | -10/Mines Mutant | -9/Materials Mutant | -9/Mines Mutant | -9/Exiles Resources | -11 -10 -10 -9 -9 -9 ----------- Run | Yrd Mat Min Mat Min Exi Matter Collected 1137 | 210 179 72 525 108 43 Remotely . | . . . . . . Salvage Created 3342 | . 667 88 2110 181 296 Parts 222 | . 51 6 142 10 13 Haulers Intercepted 8 | . 2 . 6 . . Recyclers Shooed 5 | . . 1 4 . . Parts Field Recycled . | . . . . . . Retrieved Matter . | . . . . . . Parts Self-Destructed . | . . . . . . Prevented . | . . . . . . Kills | -11 -10 -10 -9 -9 -9 ------- Run | Yrd Mat Min Mat Min Exi Combat Hostiles Destroyed 62 | . 15 7 27 6 7 Guns 49 | . 15 7 21 6 . Cannons 7 | . . . 5 . 2 AOE 3 | . . . 1 . 2 Classes Destroyed 16 | . 8 2 4 . 2 Worker 6 | . 1 . 5 . . Builder 2 | . 1 . 1 . . Tunneler 1 | . . . 1 . . Hauler 8 | . 2 . 6 . . Recycler 5 | . 1 . 4 . . Mechanic 1 | . . . 1 . . Operator 4 | . 1 . 3 . . Watcher 7 | . 2 . 5 . . Swarmer 17 | . 8 3 3 3 . Grunt 26 | . 7 . 13 3 3 Brawler 2 | . . . 1 . 1 Sentry 10 | . . . 10 . . Demolisher 1 | . . 1 . . . Hunter 1 | . . . . . 1 Programmer 2 | . . . . . 2 Assembled 3 | . . 3 . . . Best Kill Streak 8 | . 5 3 8 3 7 Combat Bots Only 7 | . 3 3 5 3 7 Max Kills in Single Turn 3 | . 1 2 2 1 3 Gunslinging . | . . . . . . Exploded 1 | . . . 1 . 1 Melee . | . . . . . . Uniques/NPCs Destroyed . | . . . . . . Combat | -11 -10 -10 -9 -9 -9 -------- Run | Yrd Mat Min Mat Min Exi Hostile Shots Fired 355 | . 78 31 111 29 106 Missed 84 | . 13 7 30 10 24 Damage Taken 3723 | . 628 588 1070 225 1212 Core 590 | . 103 80 79 49 279 Absorbed by Shields 104 | . . . 104 . . Redirected to Shielding 120 | . 50 . 70 . . Regen/Repaired (Parts) 150 | . 73 . 77 . . Core Remaining (%) 63 | 100 . 26 . . . Volleys Fired 212 | . 57 23 112 17 3 Largest 2 | . 2 2 2 2 1 Hottest 250 | . 90 90 93 46 250 Shots Fired 412 | . 113 43 218 35 3 Gun 377 | . 112 43 187 35 . Cannon 31 | . . . 28 . 3 Launcher 4 | . 1 . 3 . . Special . | . . . . . . Kinetic 127 | . 4 11 77 35 . Thermal 171 | . 96 11 61 . 3 Explosive 4 | . 1 . 3 . . Electromagnetic 110 | . 12 21 77 . . Robot Hit Streak 16 | . 12 6 16 12 8 Robot Miss Streak 5 | . 3 5 4 5 1 Penetration Max . | . . . . . . Secondary Targets 3 | . 3 . . . . Max Gunslinging Chain 1 | . 1 . . . . Shots Hit Robots 283 | . 79 27 156 19 2 Core Hits 156 | . 37 15 84 10 10 Critical Kills . | . . . . . . Critical Parts Destroyed . | . . . . . . Critical Strikes 3 | . 3 . . . . Burn 3 | . 3 . . . . Melee Attacks 4 | . . . 4 . . Impact . | . . . . . . Slashing . | . . . . . . Piercing . | . . . . . . Sneak Attacks 3 | . . . 3 . . Combat Hostiles . | . . . . . . Follow-up Attacks . | . . . . . . Damage Inflicted 4825 | . 997 309 2730 299 490 Guns 3483 | . 963 309 1914 297 . Cannons 593 | . . . 490 . 103 Explosions 719 | . 21 . 311 . 387 Melee . | . . . . . . Ramming 30 | . 13 . 15 2 . Kinetic 776 | . 20 47 412 297 . Thermal 2471 | . 775 79 1127 . 490 Explosive 151 | . 21 . 130 . . Electromagnetic 1397 | . 168 183 1046 . . Impact . | . . . . . . Slashing . | . . . . . . Piercing . | . . . . . . Highest Corruption 13 | . . 13 2 2 6 Average Corruption 2 | . . 8 2 2 2 Corruption Purged . | . . . . . . Corruption Blocked . | . . . . . . Effects 35 | . . 1 12 16 6 Message Errors 9 | . . . 4 2 3 Matter Fused 7 | . . . 3 2 2 Heat Flow Errors 4 | . . . . 3 1 Energy Discharges 5 | . . . 2 3 . Data Loss (minor) 5 | . . . 2 3 . Data Loss (major) 3 | . . 1 . 2 . Misfires 2 | . . . 1 1 . Overload Shots . | . . . . . . Overflow Damage 42 | . . . 42 . . Projectiles . | . . . . . . Explosions 42 | . . . 42 . . Melee . | . . . . . . Knockbacks . | . . . . . . Impact . | . . . . . . Kinetic . | . . . . . . Secondary . | . . . . . . Self-Inflicted Damage 179 | . . . 157 . 22 Shots 9 | . . . 5 . 4 Rammed 6 | . 2 . 3 1 . Targets Rammed 7 | . 2 . 4 1 . Kicked . | . . . . . . Crushed 1 | . . . 1 . . Highest Temperature 452 | . 260 20 330 179 452 Average Temperature 88 | . 90 20 77 43 219 Received Heat Transfer 836 | . 198 60 341 87 150 Effects 2 | . 1 . . . 1 Energy Bleed 2 | . 1 . . . 1 Siege Activations . | . . . . . . Robots Corrupted . | . . . . . . Combat Hostiles . | . . . . . . Parts Fried 8 | . 1 . 7 . . Impact Corruptions . | . . . . . . Robots Melted 3 | . . . . . 3 Combat Hostiles 3 | . . . . . 3 Parts Melted 17 | . 5 . 2 . 10 Heat Transferred 7010 | . 2268 175 2087 . 2480 Parts Sabotaged . | . . . . . . Parts Stolen . | . . . . . . Parts Stripped . | . . . . . . Power Chain Reactions 4 | . . . 4 . . Alert | -11 -10 -10 -9 -9 -9 ------- Run | Yrd Mat Min Mat Min Exi Peak Influence 349 | . 307 86 349 152 . Initial 82 | . . 16 . 82 . Average 125 | . 111 34 195 54 . Maximum Alert Level 1 | . 1 . 1 . . Low Security (%) 70 | 100 80 100 41 100 . Level 1 29 | . 19 . 58 . . Level 2 . | . . . . . . Level 3 . | . . . . . . Level 4 . | . . . . . . Level 5 . | . . . . . . High Security . | . . . . . . Max Security . | . . . . . . Squads Dispatched 9 | . 5 . 4 . . Investigation 5 | . 3 . 2 . . Extermination . | . . . . . . Reinforcement 4 | . 2 . 2 . . Assault . | . . . . . . Garrison . | . . . . . . Intercept . | . . . . . . Searches Triggered . | . . . . . . Construction Impeded . | . . . . . . Haulers Reinforced . | . . . . . . Active Scanning Responses . | . . . . . . Cargo Convoy Interrupts . | . . . . . . Stealth | -11 -10 -10 -9 -9 -9 --------- Run | Yrd Mat Min Mat Min Exi Distress Signals 4 | . . . 4 . . Communications Jammed . | . . . . . . Distress Signals . | . . . . . . Times Spotted 105 | . 27 9 51 6 12 Peak Tracking Total 7 | . 5 3 4 3 7 Tactical Retreats 3 | . 1 . 2 . . Traps | -11 -10 -10 -9 -9 -9 ------- Run | Yrd Mat Min Mat Min Exi Traps Triggered 3 | . 2 . 1 . . Indirectly . | . . . . . . Trap Hack Attempts . | . . . . . . Triggered . | . . . . . . Disarmed . | . . . . . . Reprogrammed . | . . . . . . Reused . | . . . . . . Traps Extracted . | . . . . . . Installed . | . . . . . . Triggered . | . . . . . . Machines | -11 -10 -10 -9 -9 -9 ---------- Run | Yrd Mat Min Mat Min Exi Machines Disabled 2 | . . . 1 . 1 Max in Single Turn 1 | . . . 1 . 1 Machines Repaired . | . . . . . . Machines Dismantled . | . . . . . . Machines Sabotaged . | . . . . . . Overloaded Fab Kills . | . . . . . . Hacking | -11 -10 -10 -9 -9 -9 --------- Run | Yrd Mat Min Mat Min Exi Machines Accessed 18 | . 6 1 11 . . Terminals 14 | . 5 . 9 . . Fabricators . | . . . . . . Repair Stations 3 | . 1 . 2 . . Recycling Units . | . . . . . . Scanalyzers . | . . . . . . Garrison Access . | . . . . . . Total Hacks 45 | . 18 1 26 . . Successful 17 | . 6 1 10 . . Failed 28 | . 12 . 16 . . Catastrophic 6 | . 2 . 4 . . Database Lockouts . | . . . . . . Manual 11 | . 4 . 6 . 1 Terminals 36 | . 14 . 22 . . Fabricators . | . . . . . . Repair Stations 8 | . 4 . 4 . . Recycling Units . | . . . . . . Scanalyzers . | . . . . . . Garrison Access . | . . . . . . Terminal Hacks 10 | . 3 1 6 . . Robot Analysis 1 | . 1 . . . . Prototype ID Bank 1 | . 1 . . . . Open Door 1 | . . 1 . . . Emergency Access Points 1 | . . . 1 . . Alert Level 1 | . . . 1 . . Unreport Threat 3 | . 1 . 2 . . Locate Traps 1 | . . . 1 . . Zone Layout 1 | . . . 1 . . Fabricator Hacks . | . . . . . . Repair Station Hacks 6 | . 3 . 3 . . Scan Component 4 | . 2 . 2 . . Repair 2 | . 1 . 1 . . Recycling Unit Hacks . | . . . . . . Scanalyzer . | . . . . . . Garrison Access Hacks . | . . . . . . Unauthorized Hacks 1 | . . . 1 . . Terminals 1 | . . . 1 . . Assimilate 1 | . . . 1 . . Fabricators . | . . . . . . Repair Stations . | . . . . . . Recycling Units . | . . . . . . Scanalyzers . | . . . . . . Garrison Access . | . . . . . . Data Cores Recovered 1 | . . . 1 . . Used . | . . . . . . Hacking Detections 15 | . 6 . 9 . . Full Trace Events 3 | . 1 . 2 . . Feedback Events . | . . . . . . Feedback Blocked . | . . . . . . Robot Schematics Acquired . | . . . . . . Robots Built . | . . . . . . Authchips . | . . . . . . Time . | . . . . . . Total Robot Build Rating . | . . . . . . Part Schematics Acquired . | . . . . . . Parts Built . | . . . . . . Authchips . | . . . . . . Time . | . . . . . . Total Part Build Rating . | . . . . . . Parts Repaired 2 | . 1 . 1 . . Time 64 | . 26 . 38 . . Parts Recycled . | . . . . . . Recycled Matter . | . . . . . . Retrieved Matter . | . . . . . . Retrieved Components . | . . . . . . Parts Scanalyzed . | . . . . . . Part Schematics Acquired . | . . . . . . Parts Damaged . | . . . . . . Bothacking | -11 -10 -10 -9 -9 -9 ------------ Run | Yrd Mat Min Mat Min Exi Used RIF Installer . | . . . . . . Robots Hacked . | . . . . . . Non-combat . | . . . . . . Combat . | . . . . . . Robot Hacks Applied . | . . . . . . Relay Couplers Released . | . . . . . . Fabnet Peak Effective % . | . . . . . . Robots Rewired . | . . . . . . Allies Hacked . | . . . . . . Hacks Repelled . | . . . . . . Allies | -11 -10 -10 -9 -9 -9 -------- Run | Yrd Mat Min Mat Min Exi Total Allies 3 | . . 3 . . . Largest Group 3 | . . 3 3 . . Highest-Rated Group 73 | . . 73 73 . . Highest-Rated Ally 31 | . . 31 31 . . Total Orders . | . . . . . . Ally Attacks 8 | . . . 8 . . Total Damage 40 | . . . 40 . . Kills 1 | . . . 1 . . Allies Corrupted 1 | . . . 1 . . Allies Melted . | . . . . . . Intel | -11 -10 -10 -9 -9 -9 ------- Run | Yrd Mat Min Mat Min Exi Robot Analysis Total 1 | . 1 . . . . Derelict Logs Recovered 4 | . . 1 . 3 . Drone Launches . | . . . . . . Drone Recoveries . | . . . . . . Exploration | -11 -10 -10 -9 -9 -9 ------------- Run | Yrd Mat Min Mat Min Exi Turns Passed 6345 | 28 1164 977 2614 1093 469 Spaces Moved 3307 | 32 579 533 1246 649 268 Core 34 | 31 . . . . 3 Treads 3273 | 1 579 533 1246 649 265 Legs . | . . . . . . Wheels . | . . . . . . Hover . | . . . . . . Flight . | . . . . . . Fastest Speed 50 | 50 160 160 160 160 50 Average Speed 160 | 53 160 160 164 160 161 Slowest Speed 250 | 160 160 165 250 160 240 Overloaded Moves . | . . . . . . Propulsion Burnouts . | . . . . . . Robots Hopped . | . . . . . . Cave-ins Triggered . | . . . . . . Exploration Rate (%) 73 | 3 96 98 95 100 48 Regions Visited 5 Branch Regions 3 Pre-discovered Areas 3 | . . . . 3 . Known Exits Taken . | . . . . . . Unknown Exits Taken 5 | 1 1 1 1 1 . Scrap Searched 3 | . . 2 . 1 . Spaces Dug 8 | . . . 8 . . Terrain Destroyed 45 | . 6 . 34 . 5 Melee . | . . . . . . Projectile . | . . . . . . AOE 45 | . 6 . 34 . 5 Terrain Rammed . | . . . . . . Walls Destroyed . | . . . . . . Machines Disabled . | . . . . . . Actions | -11 -10 -10 -9 -9 -9 --------- Run | Yrd Mat Min Mat Min Exi Total 3937 | 43 700 615 1602 669 308 Wait 239 | . 34 42 159 3 1 Move 3302 | 31 578 532 1245 648 268 Hop . | . . . . . . Pick Up 51 | 6 13 6 19 . 7 Fast Attach 15 | . 1 . 11 . 3 Attach 19 | 6 4 2 3 . 4 Detach 2 | . . . 1 . 1 Swap 38 | . 9 7 19 . 3 Drop 48 | . 2 3 25 . 18 Fire 212 | . 57 23 112 17 3 Melee 4 | . . . 4 . . Ram . | . . . . . . Kick . | . . . . . . Crush 7 | . 2 . 4 1 . Escape Stasis . | . . . . . . Rewire . | . . . . . . Trap . | . . . . . . Miscellaneous . | . . . . . . Route ------- -11/Scrapyard -10/Materials (discovered 5 exits: *Mat x3 / *Min x2) -10/Mines (discovered 2 exits: *Mat x2) -9/Materials (discovered 5 exits: *Mat x3 / [*Min x2]) -9/Mines (discovered 3 exits: *Mat x2 / *Exi) -9/Exiles History --------- Turn | Location | Event 2 | -11/Scrapyard | Met Revision 17 11 | -11/Scrapyard | Discovered new exit (range 16) 29 | -11/Scrapyard | Entered Materials 258 | -10/Materials | Discovered new exit (range 16) 303 | -10/Materials | Build established: Mutant 304 | -10/Materials | Discovered new exit (range 9) 413 | -10/Materials | Discovered new exit (range 16) 489 | -10/Materials | Repaired Lgt. Treads 670 | -10/Materials | Lost 3 parts (1p1n1u) 848 | -10/Materials | Discovered new exit (range 15) 1083 | -10/Materials | Discovered new exit (range 5) 1193 | -10/Materials | Entered Mines 1216 | -10/Mines | Discovered new exit (range 5) 1224 | -10/Mines | Assembled infested the area 1263 | -10/Mines | Learned location of 1 exit from Materials 1441 | -10/Mines | Core integrity fell below 50% 1709 | -10/Mines | Met a Derelict who couldn't figure out how to use a Trap Extractor 1822 | -10/Mines | Received a Rocket Launcher from a helpful Derelict 1898 | -10/Mines | Discovered new exit (range 3) 2028 | -10/Mines | Received a Mining Laser from a helpful Derelict 2169 | -10/Mines | System corruption reached 10% 2170 | -10/Mines | Entered Materials 2170 | -9/Materials | Accompanied by 3 allies 2170 | -9/Materials | Evolved 2 slots: Utility x2 2171 | -9/Materials | Identified exit to Materials 2175 | -9/Materials | Led the pair of lost Derelicts to an unsafe place 2202 | -9/Materials | Discovered new exit (range 16) 3126 | -9/Materials | Discovered exit to Materials (range 13) 3445 | -9/Materials | Repaired Imp. Propulsion Shielding 4076 | -9/Materials | Discovered new exit (range 14) 4274 | -9/Materials | Lost 3 parts (1n2w) 4609 | -9/Materials | Discovered exit to Materials (range 13) 4784 | -9/Materials | Entered Mines 4785 | -9/Mines | Learned location of Storage (-8) 4888 | -9/Mines | Learned Materials garrison access intel 4961 | -9/Mines | Discovered exit to Materials (range 7) 5294 | -9/Mines | Discovered exit to Materials (range 6) 5869 | -9/Mines | Deemed a non-threat by the Exiles lab entrance 5870 | -9/Mines | Discovered new exit (range 5) 5877 | -9/Mines | Entered Exiles 5916 | -9/Exiles | Met 8R-AWN 5943 | -9/Exiles | Met EX-HEX 5988 | -9/Exiles | Met EX-BIN 6009 | -9/Exiles | Aligned with FarCom system 6010 | -9/Exiles | Given EX-Vault access code 6049 | -9/Exiles | Opened EX-Vault 6065 | -9/Exiles | Found Prototype Energy Cannon 6066 | -9/Exiles | Identified Firepult 6088 | -9/Exiles | Found Prototype Ballistic Cannon 6127 | -9/Exiles | Exiles lab attacked by MAIN.C 6330 | -9/Exiles | Core integrity fell below 50% 6344 | -9/Exiles | Core integrity fell below 20% 6344 | -9/Exiles | Released all parts (3) 6346 | -9/Exiles | Destroyed by G-34 Mercenary with Small Laser Last Messages --------------- Lgt. Treads destroyed. Penetrated by Slug. Lgt. Treads destroyed. Acquired Gravmag System. Gravmag System destroyed. Penetrated by Slug. Imp. Light Armor Plating destroyed. Identified Imp. Flight Unit. Dropped Hvy. Ion Engine. Dropped Imp. Light Armor Plating. P-60 Hacker heat damages core (-11). Shock Rifle melted. Slug penetrates Machine. Dropped Imp. Propulsion Shielding. Dropped Adv. Targeting Computer. Dropped Datajack. Released Med. Storage Unit. Released Adv. Targeting Computer. Released Imp. Flight Unit. Penetrated by Slug. Map ----- +----------------------------------------------------+ | ???????????????????????????#""X" #???????? | | ???????????????????????????#" #???????? | | ???????????????????????????#" ## #???????? | | ???????????????????????????#""""""?# #?####### | | ???????????????????????????##"###??# #?#"""""" | | ???????????????????????????????????# #?#"""""" | | ???????????????????????????????????# #?#"""""" | | ??????????????????????????????????## ###"" """ | | ??????????????????????????????????#" """ | | ??????????????????????????????????#" "" | | ??????????????????????????????????#" "" | | ??????????????????????????????????#" "" | | ??????????????????????????????????#" "" | | ??????????????????????????????????#" "" | | ??????????????????????????????????## "" | | ????????????????????"??????????????# "" | | ???????????????????#"??????????????#" "X" "" | | ???????????????????#""?????????????#"[[ """ | | ???????????????????? ?????????????# """""""" | | ?????????????????????" ???????????##" ######### | | ?????????????????????# ??????????## #???????? | | ???????????????????#?# ###?###### #???????? | | ??????????? """#####X# #"### " % ##??????? | | ?????????? "" %* ##???### | | ?????????? "/!= =%[ #####"" | | ?????????? @"!*! = " | | ?????????? !!!% % | | ??????????# g !%[= %%* | | ???????????# g [% ==[= | | ???????????## [[%= | | ????????????##" [% | | ?????????????#"" %* | | ?????????????? h #;# ## | | ?????????????" ""##### ##"" | | ?????????????" g """##????##?#### " | | ??????????????"% """##???????????#"""" | | ?????????????? ""#????????????#"" | | ??????????????? ???????????????""" | | ????????????????? ??????????????? | | ??????????????????? ???????????????? | | ?????????????????????? ???????????????? | | ???????????????????????? ???????????????? | | ?????????????????????????????????????????? | | ??????????????????????????????????????????? | | ?????????????????????????????????????????????" " | | ???????????????????????????????????????????????" " | | ?????????????????????????????????????????????????? | | ?????????????????????????????????????????????????? | | ?????????????????????????????????????????????????? | | ?????????????????????????????????????????????????? | +----------------------------------------------------+ Best States ------------- Heat Dissipation 38 Energy Generation 14 Energy Capacity 280 Matter Stores 300 Matter Capacity 300 Sight Range 16 Terrain Scan Density 10 Armor Coverage 300 Propulsion Shielding 66 Evasion (%) 50 Targeting Accuracy 8 Recoil Reduction 2 Item Schematics ----------------- None Robot Schematics ------------------ None Fabricated ------------ Nothing Alien Tech Used ----------------- None Achievements -------------- None Challenges ------------ None Game ------ Seed GuidedPulseAutocannon Manual? 0 Play Time 00:31:07 Cumulative 38.4 hours Start 2024.07.14 @ 16:28:25 End 2024.07.14 @ 16:59:46 Sessions 1 Manual Loads 0 Difficulty Rogue Special Mode None Game No. 78 Rogue 77 Adventurer 1 Explorer 0 Win Type - Total 0 Types 0/0/0/0/0/0/0/0/0 Lore% 18 Gallery% 38 Achievement% 32 Wizard Run 0 Options --------- Layout 1 ASCII 0 Keyboard 0 Movement Mouse Keybinds 0 Fullscreen 2 Font 24/Terminus Map View 50x35 Zoom Use 0% Tactical HUD 0 Map Filters NONE Filters NONE Steam 1 RUN: 7beff38e-0569-4ed1-beee-3a072040752f